{"text_format":"3","workbook":"xlsx","n_sheets":1,"sheets":["Бюджет на ОНЦ"],"not_rendered":{"charts":2,"images":1,"defined_names":1},"read":"whole","date_system":"1900"}

{"sheet":"Бюджет на ОНЦ","index":0,"n_rows":40,"n_cols":7,"rows_kept":40,"merged":[[16,1,16,6],[21,1,21,5]]}
[null,"Бюджет на ОНЦ",{"$nulls":3},"ФИНАНСОВА ГОДИНА",2012]
{"$rows_empty":7}
[null,null,{"$f":"CONCATENATE(\"ФГ \",ФГ-1)","v":"ФГ 2011"},{"$f":"CONCATENATE(\"ФГ \",ФГ)","v":"ФГ 2012"},{"$f":"CONCATENATE(\"ФГ \",ФГ)","v":"ФГ 2012"},{"$f":"CONCATENATE(\"ФГ \",ФГ)","v":"ФГ 2012"},{"$f":"CONCATENATE(\"ФГ \",ФГ)","v":"ФГ 2012"}]
[null,"ПРИХОДИ","ПРЕДИШНА ГОДИНА","ПРЕДЛОЖЕНИ","РЕАЛНИ","РАЗЛИКА","+/- ПРЕДИШНА ГОДИНА"]
[null,"Акции за набиране на средства и събития",{"v":150000,"d":"150000.00"},{"v":200000,"d":"200000.00"},{"v":180000,"d":"180000.00"},{"$f":"Таблица_приходи[[#This Row],[РЕАЛНИ]]-Таблица_приходи[[#This Row],[ПРЕДЛОЖЕНИ]]","v":{"v":-20000,"d":"-20000.00 "}},{"$f":"Таблица_приходи[[#This Row],[РЕАЛНИ]]-Таблица_приходи[[#This Row],[ПРЕДИШНА ГОДИНА]]","v":{"v":30000,"d":"30000.00"}}]
[null,"Фондация",{"v":50000,"d":"50000.00"},{"v":50000,"d":"50000.00"},{"v":50000,"d":"50000.00"},{"$f":"Таблица_приходи[[#This Row],[РЕАЛНИ]]-Таблица_приходи[[#This Row],[ПРЕДЛОЖЕНИ]]","v":{"v":0,"d":"0.00"}},{"$f":"Таблица_приходи[[#This Row],[РЕАЛНИ]]-Таблица_приходи[[#This Row],[ПРЕДИШНА ГОДИНА]]","v":{"v":0,"d":"0.00"}}]
[null,"Дарения",{"v":30000,"d":"30000.00"},{"v":40000,"d":"40000.00"},{"v":20000,"d":"20000.00"},{"$f":"Таблица_приходи[[#This Row],[РЕАЛНИ]]-Таблица_приходи[[#This Row],[ПРЕДЛОЖЕНИ]]","v":{"v":-20000,"d":"-20000.00 "}},{"$f":"Таблица_приходи[[#This Row],[РЕАЛНИ]]-Таблица_приходи[[#This Row],[ПРЕДИШНА ГОДИНА]]","v":{"v":-10000,"d":"-10000.00 "}}]
[null,"Приходи от лихви",{"$nulls":3},{"$f":"Таблица_приходи[[#This Row],[РЕАЛНИ]]-Таблица_приходи[[#This Row],[ПРЕДЛОЖЕНИ]]","v":{"v":0,"d":"0.00"}},{"$f":"Таблица_приходи[[#This Row],[РЕАЛНИ]]-Таблица_приходи[[#This Row],[ПРЕДИШНА ГОДИНА]]","v":{"v":0,"d":"0.00"}}]
[null,"Разни",{"$nulls":3},{"$f":"Таблица_приходи[[#This Row],[РЕАЛНИ]]-Таблица_приходи[[#This Row],[ПРЕДЛОЖЕНИ]]","v":{"v":0,"d":"0.00"}},{"$f":"Таблица_приходи[[#This Row],[РЕАЛНИ]]-Таблица_приходи[[#This Row],[ПРЕДИШНА ГОДИНА]]","v":{"v":0,"d":"0.00"}}]
[null,"ОБЩИ СУМИ",{"$f":"SUBTOTAL(109,Таблица_приходи[ПРЕДИШНА ГОДИНА])","v":{"v":230000,"d":"230,000.00 лв."}},{"$f":"SUBTOTAL(109,Таблица_приходи[ПРЕДЛОЖЕНИ])","v":{"v":290000,"d":"290,000.00 лв."}},{"$f":"SUBTOTAL(109,Таблица_приходи[РЕАЛНИ])","v":{"v":250000,"d":"250,000.00 лв."}},{"$f":"SUBTOTAL(109,Таблица_приходи[РАЗЛИКА])","v":{"v":-40000,"d":"-40,000.00 лв."}},{"$f":"SUBTOTAL(105,Таблица_приходи[+/- ПРЕДИШНА ГОДИНА])","v":{"v":-10000,"d":"-10,000.00 лв."}}]
{"$rows_empty":8}
[null,null,{"$f":"CONCATENATE(\"ФГ \",ФГ-1)","v":"ФГ 2011"},{"$f":"CONCATENATE(\"ФГ \",ФГ)","v":"ФГ 2012"},{"$f":"CONCATENATE(\"ФГ \",ФГ)","v":"ФГ 2012"},{"$f":"CONCATENATE(\"ФГ \",ФГ)","v":"ФГ 2012"},{"$f":"CONCATENATE(\"ФГ \",ФГ)","v":"ФГ 2012"}]
[null,"РАЗХОДИ","ПРЕДИШНА ГОДИНА","ПРЕДЛОЖЕНИ","РЕАЛНИ","РАЗЛИКА","+/- ПРЕДИШНА ГОДИНА"]
[null,"Заплати",{"v":15000,"d":"15,000.00"},{"v":30000,"d":"30,000.00"},{"v":30000,"d":"30,000.00"},{"$f":"Таблица_Разходи[[#This Row],[РЕАЛНИ]]-Таблица_Разходи[[#This Row],[ПРЕДЛОЖЕНИ]]","v":{"v":0,"d":"0.00"}},{"$f":"Таблица_Разходи[[#This Row],[РЕАЛНИ]]-Таблица_Разходи[[#This Row],[ПРЕДИШНА ГОДИНА]]","v":{"v":15000,"d":"15,000.00"}}]
[null,"Ползи",{"v":5000,"d":"5,000.00"},{"v":7500,"d":"7,500.00"},{"v":7800,"d":"7,800.00"},{"$f":"Таблица_Разходи[[#This Row],[РЕАЛНИ]]-Таблица_Разходи[[#This Row],[ПРЕДЛОЖЕНИ]]","v":{"v":300,"d":"300.00"}},{"$f":"Таблица_Разходи[[#This Row],[РЕАЛНИ]]-Таблица_Разходи[[#This Row],[ПРЕДИШНА ГОДИНА]]","v":{"v":2800,"d":"2,800.00"}}]
[null,"Наем",{"v":6000,"d":"6,000.00"},{"v":6000,"d":"6,000.00"},{"v":6000,"d":"6,000.00"},{"$f":"Таблица_Разходи[[#This Row],[РЕАЛНИ]]-Таблица_Разходи[[#This Row],[ПРЕДЛОЖЕНИ]]","v":{"v":0,"d":"0.00"}},{"$f":"Таблица_Разходи[[#This Row],[РЕАЛНИ]]-Таблица_Разходи[[#This Row],[ПРЕДИШНА ГОДИНА]]","v":{"v":0,"d":"0.00"}}]
[null,"Комунални услуги",{"v":1000,"d":"1,000.00"},{"v":1200,"d":"1,200.00"},{"v":1150,"d":"1,150.00"},{"$f":"Таблица_Разходи[[#This Row],[РЕАЛНИ]]-Таблица_Разходи[[#This Row],[ПРЕДЛОЖЕНИ]]","v":{"v":-50,"d":"-50.00 "}},{"$f":"Таблица_Разходи[[#This Row],[РЕАЛНИ]]-Таблица_Разходи[[#This Row],[ПРЕДИШНА ГОДИНА]]","v":{"v":150,"d":"150.00"}}]
[null,"Пътувания и срещи",{"v":2500,"d":"2,500.00"},{"v":2000,"d":"2,000.00"},{"v":2800,"d":"2,800.00"},{"$f":"Таблица_Разходи[[#This Row],[РЕАЛНИ]]-Таблица_Разходи[[#This Row],[ПРЕДЛОЖЕНИ]]","v":{"v":800,"d":"800.00"}},{"$f":"Таблица_Разходи[[#This Row],[РЕАЛНИ]]-Таблица_Разходи[[#This Row],[ПРЕДИШНА ГОДИНА]]","v":{"v":300,"d":"300.00"}}]
[null,"Професионални такси",{"$nulls":3},{"$f":"Таблица_Разходи[[#This Row],[РЕАЛНИ]]-Таблица_Разходи[[#This Row],[ПРЕДЛОЖЕНИ]]","v":{"v":0,"d":"0.00"}},{"$f":"Таблица_Разходи[[#This Row],[РЕАЛНИ]]-Таблица_Разходи[[#This Row],[ПРЕДИШНА ГОДИНА]]","v":{"v":0,"d":"0.00"}}]
[null,"Маркетинг/реклами",{"$nulls":3},{"$f":"Таблица_Разходи[[#This Row],[РЕАЛНИ]]-Таблица_Разходи[[#This Row],[ПРЕДЛОЖЕНИ]]","v":{"v":0,"d":"0.00"}},{"$f":"Таблица_Разходи[[#This Row],[РЕАЛНИ]]-Таблица_Разходи[[#This Row],[ПРЕДИШНА ГОДИНА]]","v":{"v":0,"d":"0.00"}}]
[null,"Застраховка",{"$nulls":3},{"$f":"Таблица_Разходи[[#This Row],[РЕАЛНИ]]-Таблица_Разходи[[#This Row],[ПРЕДЛОЖЕНИ]]","v":{"v":0,"d":"0.00"}},{"$f":"Таблица_Разходи[[#This Row],[РЕАЛНИ]]-Таблица_Разходи[[#This Row],[ПРЕДИШНА ГОДИНА]]","v":{"v":0,"d":"0.00"}}]
[null,"Телефон",{"$nulls":3},{"$f":"Таблица_Разходи[[#This Row],[РЕАЛНИ]]-Таблица_Разходи[[#This Row],[ПРЕДЛОЖЕНИ]]","v":{"v":0,"d":"0.00"}},{"$f":"Таблица_Разходи[[#This Row],[РЕАЛНИ]]-Таблица_Разходи[[#This Row],[ПРЕДИШНА ГОДИНА]]","v":{"v":0,"d":"0.00"}}]
[null,"Уеб такси (уеб сайт, място за събрания и т.н.)",{"$nulls":3},{"$f":"Таблица_Разходи[[#This Row],[РЕАЛНИ]]-Таблица_Разходи[[#This Row],[ПРЕДЛОЖЕНИ]]","v":{"v":0,"d":"0.00"}},{"$f":"Таблица_Разходи[[#This Row],[РЕАЛНИ]]-Таблица_Разходи[[#This Row],[ПРЕДИШНА ГОДИНА]]","v":{"v":0,"d":"0.00"}}]
[null,"Оборудване",{"$nulls":3},{"$f":"Таблица_Разходи[[#This Row],[РЕАЛНИ]]-Таблица_Разходи[[#This Row],[ПРЕДЛОЖЕНИ]]","v":{"v":0,"d":"0.00"}},{"$f":"Таблица_Разходи[[#This Row],[РЕАЛНИ]]-Таблица_Разходи[[#This Row],[ПРЕДИШНА ГОДИНА]]","v":{"v":0,"d":"0.00"}}]
[null,"Консумативи",{"$nulls":3},{"$f":"Таблица_Разходи[[#This Row],[РЕАЛНИ]]-Таблица_Разходи[[#This Row],[ПРЕДЛОЖЕНИ]]","v":{"v":0,"d":"0.00"}},{"$f":"Таблица_Разходи[[#This Row],[РЕАЛНИ]]-Таблица_Разходи[[#This Row],[ПРЕДИШНА ГОДИНА]]","v":{"v":0,"d":"0.00"}}]
[null,"Пощенски разходи",{"$nulls":3},{"$f":"Таблица_Разходи[[#This Row],[РЕАЛНИ]]-Таблица_Разходи[[#This Row],[ПРЕДЛОЖЕНИ]]","v":{"v":0,"d":"0.00"}},{"$f":"Таблица_Разходи[[#This Row],[РЕАЛНИ]]-Таблица_Разходи[[#This Row],[ПРЕДИШНА ГОДИНА]]","v":{"v":0,"d":"0.00"}}]
[null,"ОБЩИ СУМИ",{"$f":"SUBTOTAL(109,Таблица_Разходи[ПРЕДИШНА ГОДИНА])","v":{"v":29500,"d":"29,500.00 лв."}},{"$f":"SUBTOTAL(109,Таблица_Разходи[ПРЕДЛОЖЕНИ])","v":{"v":46700,"d":"46,700.00 лв."}},{"$f":"SUBTOTAL(109,Таблица_Разходи[РЕАЛНИ])","v":{"v":47750,"d":"47,750.00 лв."}},{"$f":"SUBTOTAL(109,Таблица_Разходи[РАЗЛИКА])","v":{"v":1050,"d":"1,050.00 лв."}},{"$f":"SUBTOTAL(109,Таблица_Разходи[+/- ПРЕДИШНА ГОДИНА])","v":{"v":18250,"d":"18,250.00 лв."}}]